Cogmind - Beta 17.1 @@@ ROGUE MODE // 2026.09.02 @ 02:42:24 Player: Godsword Result: Self-destructed Performance ------------- Evolutions (4) 2000 Regions Visited (7) 1400 Robots Destroyed (11) 55 Value Destroyed (201) 201 Prototype IDs (29) 580 Alien Tech Used (0) 0 Bonus (300) 300 TOTAL SCORE: 4536 Bonus ------- Aligned with FarCom 300 Cogmind --------- Core Integrity 758/850 Matter 290/300 Energy 160/160 System Corruption 13% Temperature Cool (0) Movement Flying (112) Ox1 Location -6/Factory Parts ------- > --- POWER (2) -------- Light Nuclear Core > --- PROPULSION (6) --- Improved Flight Unit Xenon Bombardment Thruster > --- UTILITY (4) ------ Improved Cooling System Modified TNC Hacking Suite System Shield > --- WEAPON (3) ------- Rocket Array Scythe > --- INVENTORY (5) ---- Light Deuterium Engine Improved Propulsion Shielding Hacking Suite System Shield System Shield Peak State ------------ > --- POWER ------------ Cooled Ion Engine Light Nuclear Core > --- PROPULSION ------- Flight Unit Flight Unit Flight Unit Improved Flight Unit Xenon Bombardment Thruster > --- UTILITY ---------- Improved Cooling System Modified TNC Hacking Suite System Shield > --- WEAPON ----------- Improved Heavy Laser Rocket Array Scythe > --- INVENTORY -------- Light Deuterium Engine Core Analyzer Reaction Control System Improved Propulsion Shielding System Shield [Rating: 47] Favorites ----------- Power Light Ion Engine Engine Light Ion Engine Power Core Light Nuclear Core Propulsion Flight Unit Hover Unit Backup Propulsion I Flight Unit Flight Unit Utility Backup Plating I Device Improved Cooling System Processor Modified TNC Hackware System Shield Protection Backup Plating I Weapon EM Pulse Gun Energy Gun EM Pulse Gun Energy Cannon EM Pulse Cannon Ballistic Cannon Antimatter Cannon Launcher Rocket Array Slashing Weapon Scythe Build | -11 -10 -10 -10 -9 -8 -7 -6 ------- Run | Yrd Mat Min Exi Min Mat Fac Fac Slots Evolved 8 | . . . . . 4 2 2 Power 1 | . . . . . 1 . . Propulsion 4 | . . . . . 2 1 1 Utility 2 | . . . . . 1 1 . Weapon 1 | . . . . . . . 1 Parts Attached 30 | . 3 2 3 3 3 13 3 Power 4 | . . 1 . . 1 2 . Engine 3 | . . 1 . . 1 1 . Core 1 | . . . . . . 1 . Reactor . | . . . . . . . . Propulsion 10 | . 2 . . 3 1 3 1 Treads . | . . . . . . . . Leg . | . . . . . . . . Wheel . | . . . . . . . . Hover . | . . . . . . . . Flight 10 | . 2 . . 3 1 3 1 Utility 8 | . . . 3 . . 5 . Device 2 | . . . 1 . . 1 . Storage . | . . . . . . . . Processor 2 | . . . 1 . . 1 . Hackware 2 | . . . . . . 2 . Protection 2 | . . . 1 . . 1 . Artifact . | . . . . . . . . Weapon 8 | . 1 1 . . 1 3 2 Energy Gun 3 | . 1 1 . . . . 1 Energy Cannon 1 | . . . . . 1 . . Ballistic Gun . | . . . . . . . . Ballistic Cannon 1 | . . . . . . . 1 Launcher 2 | . . . . . . 2 . Special Weapon . | . . . . . . . . Impact Weapon . | . . . . . . . . Slashing Weapon 1 | . . . . . . 1 . Piercing Weapon . | . . . . . . . . Special Melee Weapon . | . . . . . . . . Unidentified Prototypes 6 | . . . . . . 3 3 Corrupted Parts 1 | . . . . 1 . . . System Corruption 3 | . . . . 3 . . . Parts Lost 6 | . . . . . 2 . 4 Power 1 | . . . . . . . 1 Propulsion 5 | . . . . . 2 . 3 Utility . | . . . . . . . . Weapon . | . . . . . . . . Highest Loss Streak 4 | . . . . . 2 . 4 To Critical Strikes . | . . . . . . . . Average Backups 4 | . 2 5 4 5 3 4 5 Power . | . . 1 1 1 . 1 1 Propulsion 1 | . . 2 2 2 2 . . Utility 1 | . . 1 1 . . 1 3 Weapon . | . 1 . . . . . . Tool/Special . | . . . . . . . . Unused Backups 14 | . . 1 1 2 . 3 7 Power 1 | . . . . . . . 1 Propulsion . | . . . . . . . . Utility 9 | . . 1 . 1 . 2 5 Weapon 4 | . . . 1 1 . 1 1 Tool/Special . | . . . . . . . . Average Slot Usage (%) 95 | . 76 100 100 100 85 96 86 Engine 12 | . 10 14 14 14 17 9 6 Core 1 | . . . . . . 4 6 Flight 29 | . 7 28 28 28 31 37 33 Processor 9 | . . . 5 14 9 8 6 Hackware 3 | . . . . . . 10 13 Protection 12 | . 21 28 21 14 9 5 . Energy Gun 18 | . 21 28 28 28 13 2 . Energy Cannon 1 | . . . . . 4 5 . Slashing Weapon 1 | . . . . . . 4 6 Peak Build Rating 47 | . 7 7 14 15 20 44 47 Average Rating 19 | . 6 7 9 12 17 36 41 On Entrance 12 | . . 7 7 12 15 18 41 Avg Prop Armor Cover (%) . | . . . . . . . . Naked Turns 6 | . 6 . . . . . . Heaviest Build 24 | . 5 8 8 7 17 24 24 Greatest Support 27 | 3 12 8 8 10 18 27 26 Greatest Overweight (x) 1 | . 1 . . . 1 . . Average Overweight (x) . | . . . . . . . . Largest Inventory Capacity 5 | 5 5 5 5 5 5 5 5 Average Capacity 5 | 5 5 5 5 5 5 5 5 Most Carried 5 | . 5 5 5 5 5 5 5 Average Carried 4 | . 2 4 4 4 3 4 4 Final Capacity 5 | 5 5 5 5 5 5 5 5 Final Carried 5 | . 5 5 5 5 5 5 5 Class Distribution -------------------- 65% | Mutant 24% | Hacker-Sprinter 6% | Scavenger-Sprinter 4% | Scavenger-Mutant Dominant Class ---------------- Mutant | -10/Materials Mutant | -10/Mines Mutant | -10/Exiles Mutant | -9/Mines Scavenger-Mutant | -8/Materials Hacker-Sprinter | -7/Factory Hacker-Sprinter | -6/Factory Resources | -11 -10 -10 -10 -9 -8 -7 -6 ----------- Run | Yrd Mat Min Exi Min Mat Fac Fac Matter Collected 544 | 200 30 20 . 60 51 183 . Remotely . | . . . . . . . . Salvage Created 329 | . 85 29 . 35 165 15 . Parts 23 | . 5 3 . 6 6 3 . Haulers Intercepted 2 | . 1 . . . 1 . . Recyclers Shooed . | . . . . . . . . Parts Field Recycled . | . . . . . . . . Retrieved Matter . | . . . . . . . . Parts Self-Destructed . | . . . . . . . . Prevented . | . . . . . . . . Parts Restored . | . . . . . . . . Kills | -11 -10 -10 -10 -9 -8 -7 -6 ------- Run | Yrd Mat Min Exi Min Mat Fac Fac Combat Hostiles Destroyed 7 | . 2 . . 3 2 . . Guns 4 | . 2 . . 1 1 . . Cannons 1 | . . . . . 1 . . AOE 2 | . . . . 2 . . . Classes Destroyed 5 | . 2 1 . . 1 1 . Tunneler 1 | . . 1 . . . . . Hauler 2 | . 1 . . . 1 . . Operator 1 | . . . . . . 1 . Swarmer 5 | . 2 . . 3 . . . Grunt 2 | . . . . . 2 . . Best Kill Streak 3 | . 2 2 . 3 2 1 . Combat Bots Only 3 | . 2 . . 3 1 . . Max Kills in Single Turn 2 | . 1 1 . 2 1 1 . Gunslinging . | . . . . . . . . Exploded 2 | . . . . 2 . . . Melee . | . . . . . . . . Uniques/NPCs Destroyed . | . . . . . . . . Combat | -11 -10 -10 -10 -9 -8 -7 -6 -------- Run | Yrd Mat Min Exi Min Mat Fac Fac Hostile Shots Fired 35 | . 4 . . 8 22 . 1 Missed 12 | . 2 . . 3 6 . 1 Hits 23 | . 2 . . 5 16 . . Projectile 23 | . 2 . . 5 16 . . Critical Strikes 1 | . . . . . 1 . . Damage Taken 922 | . 16 . . 118 352 19 417 Core 252 | . 8 . . 20 132 . 92 Absorbed by Shields . | . . . . . . . . Regen/Repaired (Parts) 36 | . . . . . 24 12 . Core Remaining (%) 91 | 100 . . . 88 76 100 . Volleys Fired 20 | . 5 3 . 4 8 . . Largest 2 | . 2 2 . 2 2 . . Hottest 103 | . 70 70 . 80 103 . . Shots Fired 40 | . 10 6 . 8 16 . . Gun 32 | . 10 6 . 8 8 . . Cannon 8 | . . . . . 8 . . Launcher . | . . . . . . . . Special . | . . . . . . . . Kinetic . | . . . . . . . . Thermal 20 | . 10 6 . 4 . . . Explosive . | . . . . . . . . Electromagnetic 20 | . . . . 4 16 . . Robot Hit Streak 11 | . 7 11 . 2 4 . . Robot Miss Streak 3 | . 1 1 . 2 3 . . Penetration Max . | . . . . . . . . Secondary Targets . | . . . . . . . . Shots Hit Robots 27 | . 8 5 . 4 9 1 . Core Hits 15 | . 4 1 . 3 7 . . Critical Kills . | . . . . . . . . Critical Parts Destroyed . | . . . . . . . . Critical Strikes . | . . . . . . . . Melee Attacks 20 | . . . . . . 13 7 Impact . | . . . . . . . . Slashing 20 | . . . . . . 13 7 Piercing . | . . . . . . . . Sneak Attacks . | . . . . . . . . Combat Hostiles . | . . . . . . . . Follow-up Attacks . | . . . . . . . . Damage Inflicted 553 | . 86 51 . 141 223 52 . Guns 272 | . 86 51 . 45 90 . . Cannons 133 | . . . . . 133 . . Explosions 96 | . . . . 96 . . . Melee 52 | . . . . . . 52 . Ramming . | . . . . . . . . Kinetic . | . . . . . . . . Thermal 245 | . 86 51 . 108 . . . Explosive . | . . . . . . . . Electromagnetic 256 | . . . . 33 223 . . Impact . | . . . . . . . . Slashing 52 | . . . . . . 52 . Piercing . | . . . . . . . . Highest Corruption 13 | . . . . 3 . . 13 Average Corruption 5 | . . . . 3 . . 5 Corruption Purged . | . . . . . . . . Corruption Blocked . | . . . . . . . . Effects 1 | . . . . . . . 1 Data Loss (minor) 1 | . . . . . . . 1 Overload Shots . | . . . . . . . . Overflow Damage 85 | . . . . . . 22 63 Projectiles . | . . . . . . . . Explosions 63 | . . . . . . . 63 Melee 22 | . . . . . . 22 . Knockbacks . | . . . . . . . . Impact . | . . . . . . . . Kinetic . | . . . . . . . . Secondary . | . . . . . . . . Self-Inflicted Damage 222 | . . . . 29 . . 193 Shots 3 | . . . . 1 . . 2 Rammed . | . . . . . . . . Targets Rammed . | . . . . . . . . Kicked . | . . . . . . . . Crushed . | . . . . . . . . Highest Temperature 524 | . 49 45 . 120 524 13 . Average Temperature 76 | . 23 22 . 62 233 3 . Received Heat Transfer 153 | . . . . . 153 . . Effects 3 | . . . . . 3 . . Shutdowns 1 | . . . . . 1 . . Matter Decay 1 | . . . . . 1 . . Damage (core) 1 | . . . . . 1 . . Siege Activations . | . . . . . . . . Martial Activations . | . . . . . . . . Shielding Activations . | . . . . . . . . Robots Disrupted . | . . . . . . . . Combat Hostiles . | . . . . . . . . Robots Corrupted . | . . . . . . . . Combat Hostiles . | . . . . . . . . Parts Fried 2 | . . . . . 2 . . Impact Corruptions . | . . . . . . . . Robots Melted . | . . . . . . . . Combat Hostiles . | . . . . . . . . Parts Melted 1 | . 1 . . . . . . Heat Transferred 472 | . 236 161 . 75 . . . Parts Sabotaged . | . . . . . . . . Parts Stolen . | . . . . . . . . Parts Stripped . | . . . . . . . . Power Chain Reactions 1 | . . . . 1 . . . Alert | -11 -10 -10 -10 -9 -8 -7 -6 ------- Run | Yrd Mat Min Exi Min Mat Fac Fac Maximum Alert Level . | . . . . . . . . Low Security (%) 100 | 100 100 100 . 100 100 100 100 Level 1 . | . . . . . . . . Level 2 . | . . . . . . . . Level 3 . | . . . . . . . . Level 4 . | . . . . . . . . Level 5 . | . . . . . . . . High Security . | . . . . . . . . Max Security . | . . . . . . . . Peak Influence 97 | . 40 15 . 71 97 39 64 Initial 39 | . . 10 . . . 39 . Average 7 | . 17 4 . 6 17 4 2 Influence Increases 408 | . 53 5 . 71 119 43 117 Destroy 0b10 Robot/C 140 | . 40 . . 60 40 . . Destroy 0b10 Robot/NC 20 | . 5 5 . . 5 5 . Destroy Leader 24 | . 2 . . 10 12 . . Successful Hack 34 | . 6 . . . 2 12 14 Disable Machine 45 | . . . . . . . 45 Destroy Structure 70 | . . . . 1 . 11 58 Partial Spotted 60 | . . . . . 45 15 . Lose Combat Pursuer 15 | . . . . . 15 . . Influence Decreases 344 | . 26 32 . 71 32 130 53 Entered New Map 65 | . . 17 . . . 48 . Time Decay 190 | . 26 15 . 71 12 53 13 Lost Part 60 | . . . . . 20 . 40 Purge Threat 29 | . . . . . . 29 . Squads Dispatched 4 | . . . . . 2 1 1 Investigation 1 | . . . . . 1 . . Extermination 2 | . . . . . . 1 1 Reinforcement 1 | . . . . . 1 . . Assault . | . . . . . . . . Garrison . | . . . . . . . . Intercept . | . . . . . . . . Searches Triggered . | . . . . . . . . Construction Impeded . | . . . . . . . . Haulers Reinforced . | . . . . . . . . Active Scanning Responses . | . . . . . . . . Cargo Convoy Interrupts . | . . . . . . . . Stealth | -11 -10 -10 -10 -9 -8 -7 -6 --------- Run | Yrd Mat Min Exi Min Mat Fac Fac Distress Signals . | . . . . . . . . Communications Jammed . | . . . . . . . . Distress Signals . | . . . . . . . . Times Spotted 23 | . 5 . . 6 9 1 2 Peak Tracking Total 13 | . 3 . . 3 13 1 5 Tactical Retreats 1 | . . . . . 1 . . Traps | -11 -10 -10 -10 -9 -8 -7 -6 ------- Run | Yrd Mat Min Exi Min Mat Fac Fac Traps Triggered 3 | . . . . 1 1 1 . Indirectly . | . . . . . . . . Trap Hack Attempts . | . . . . . . . . Triggered . | . . . . . . . . Disarmed . | . . . . . . . . Reprogrammed . | . . . . . . . . Reused . | . . . . . . . . Traps Extracted . | . . . . . . . . Installed 5 | . . . . 5 . . . Triggered . | . . . . . . . . Machines | -11 -10 -10 -10 -9 -8 -7 -6 ---------- Run | Yrd Mat Min Exi Min Mat Fac Fac Machines Disabled 3 | . . . . . . . 3 Max in Single Turn 3 | . . . . . . . 3 Machines Repaired . | . . . . . . . . Machines Dismantled . | . . . . . . . . Machines Sabotaged . | . . . . . . . . Overloaded Fab Kills . | . . . . . . . . Hacking | -11 -10 -10 -10 -9 -8 -7 -6 --------- Run | Yrd Mat Min Exi Min Mat Fac Fac Machines Accessed 14 | . 1 . 3 2 1 4 3 Terminals 3 | . . . . 1 . 2 . Fabricators 2 | . . . . . . . 2 Repair Stations 3 | . 1 . . . 1 1 . Recycling Units 1 | . . . . . . . 1 Scanalyzers 1 | . . . . . . 1 . Garrison Access . | . . . . . . . . Total Hacks 41 | . 1 . 20 2 2 9 7 Successful 31 | . 1 . 20 1 2 4 3 Failed 10 | . . . . 1 . 5 4 Catastrophic 2 | . . . . 1 . 1 . Database Lockouts . | . . . . . . . . Manual 5 | . . . 1 1 . 3 . Terminals 5 | . . . . 1 . 4 . Fabricators 4 | . . . . . . . 4 Repair Stations 5 | . 1 . . . 2 2 . Recycling Units 3 | . . . . . . . 3 Scanalyzers 3 | . . . . . . 3 . Garrison Access . | . . . . . . . . Terminal Hacks 22 | . . . 20 1 . 1 . Record 19 | . . . 19 . . . . Open Door 1 | . . . . 1 . . . Unreport Threat 1 | . . . . . . 1 . Proto ID Catalog 1 | . . . 1 . . . . Fabricator Hacks 2 | . . . . . . . 2 Network Status 1 | . . . . . . . 1 Build 1 | . . . . . . . 1 Repair Station Hacks 5 | . 1 . . . 2 2 . Scan Component 2 | . . . . . 1 1 . Repair 2 | . . . . . 1 1 . Refit 1 | . 1 . . . . . . Recycling Unit Hacks 1 | . . . . . . . 1 Retrieve Components 1 | . . . . . . . 1 Scanalyzer 1 | . . . . . . 1 . Retrieve Study 1 | . . . . . . 1 . Garrison Access Hacks . | . . . . . . . . Unauthorized Hacks . | . . . . . . . . Terminals . | . . . . . . . . Fabricators . | . . . . . . . . Repair Stations . | . . . . . . . . Recycling Units . | . . . . . . . . Scanalyzers . | . . . . . . . . Garrison Access . | . . . . . . . . Data Cores Recovered 1 | . . . . . . 1 . Used . | . . . . . . . . Hacking Detections 5 | . . . . 1 . 2 2 Full Trace Events . | . . . . . . . . Feedback Events . | . . . . . . . . Feedback Blocked . | . . . . . . . . Robot Schematics Acquired . | . . . . . . . . Robots Built . | . . . . . . . . Authchips . | . . . . . . . . Time 67 | . . . . . . . 67 Total Robot Build Rating . | . . . . . . . . Part Schematics Acquired . | . . . . . . . . Parts Built . | . . . . . . . . Authchips . | . . . . . . . . Time . | . . . . . . . . Total Part Build Rating . | . . . . . . . . Part Studies Acquired 1 | . . . . . . 1 . Parts Repaired 2 | . . . . . 1 1 . Time 70 | . . . . . 44 26 . Parts Recycled . | . . . . . . . . Recycled Matter . | . . . . . . . . Retrieved Matter . | . . . . . . . . Retrieved Components 2 | . . . . . . . 2 Parts Scanalyzed . | . . . . . . . . Part Schematics Acquired . | . . . . . . . . Parts Damaged . | . . . . . . . . Bothacking | -11 -10 -10 -10 -9 -8 -7 -6 ------------ Run | Yrd Mat Min Exi Min Mat Fac Fac Used RIF Installer . | . . . . . . . . Robots Hacked . | . . . . . . . . Non-combat . | . . . . . . . . Combat . | . . . . . . . . Robot Hacks Applied . | . . . . . . . . Relay Couplers Released . | . . . . . . . . Fabnet Peak Effective % . | . . . . . . . . Robots Rewired . | . . . . . . . . Allies Hacked . | . . . . . . . . Hacks Repelled . | . . . . . . . . Allies | -11 -10 -10 -10 -9 -8 -7 -6 -------- Run | Yrd Mat Min Exi Min Mat Fac Fac Total Allies 1 | . . 1 . . . . . Largest Group 1 | . . 1 . . . . . Highest-Rated Group 31 | . . 31 . . . . . Highest-Rated Ally 31 | . . 31 . . . . . Total Orders . | . . . . . . . . Ally Attacks . | . . . . . . . . Total Damage . | . . . . . . . . Kills . | . . . . . . . . Allies Corrupted . | . . . . . . . . Allies Melted . | . . . . . . . . Intel | -11 -10 -10 -10 -9 -8 -7 -6 ------- Run | Yrd Mat Min Exi Min Mat Fac Fac Active Infowar (turns) 1362 | . . . 66 693 118 341 144 Optics 73 | . . . . . . 73 . T.N.C. 1362 | . . . 66 693 118 341 144 Robot Analysis Total . | . . . . . . . . Derelict Logs Recovered 1 | . . . . 1 . . . Drone Launches . | . . . . . . . . Drone Recoveries . | . . . . . . . . Exploration | -11 -10 -10 -10 -9 -8 -7 -6 ------------- Run | Yrd Mat Min Exi Min Mat Fac Fac Turns Passed 1627 | 15 81 81 154 693 118 341 144 Spaces Moved 2331 | 29 89 157 344 486 133 722 371 Core 40 | 29 11 . . . . . . Treads . | . . . . . . . . Legs . | . . . . . . . . Wheels . | . . . . . . . . Hover 43 | . 43 . . . . . . Flight 2248 | . 35 157 344 486 133 722 371 Fastest Speed 28 | 50 37 37 37 37 31 28 28 Average Speed 33 | 50 59 37 37 37 31 28 28 Slowest Speed 120 | 50 120 37 37 37 117 28 28 Overloaded Moves . | . . . . . . . . Propulsion Burnouts . | . . . . . . . . Robots Hopped 17 | . . 3 . 5 4 4 1 Potential Cave-ins . | . . . . . . . . Cave-ins Triggered 1 | . . . . . . . 1 Exploration Rate (%) 33 | 3 23 29 63 89 24 23 12 Regions Visited 7 Branch Regions 3 Pre-discovered Areas 1 | . . . . 1 . . . Known Exits Taken . | . . . . . . . . Unknown Exits Taken 7 | 1 1 1 1 1 1 1 . Scrap Searched 2 | . . 1 . 1 . . . Spaces Dug 17 | . . . . . . 11 6 Terrain Destroyed 74 | . . . . 1 . 11 62 Melee 17 | . . . . . . 11 6 Projectile . | . . . . . . . . AOE 57 | . . . . 1 . . 56 Terrain Rammed . | . . . . . . . . Walls Destroyed . | . . . . . . . . Machines Disabled . | . . . . . . . . Actions | -11 -10 -10 -10 -9 -8 -7 -6 --------- Run | Yrd Mat Min Exi Min Mat Fac Fac Total 3090 | 28 106 171 371 987 188 838 401 Wait 635 | . 1 6 14 489 44 69 12 Move 2291 | 28 88 150 343 476 124 713 369 Hop 16 | . . 3 . 4 4 4 1 Pick Up 32 | . 6 3 3 2 3 12 3 Fast Attach 15 | . 2 . 4 . 1 5 3 Attach 7 | . . . . . 3 4 . Detach . | . . . . . . . . Swap 13 | . 1 2 . 3 1 6 . Drop 36 | . 3 4 7 4 . 12 6 Fire 20 | . 5 3 . 4 8 . . Melee 20 | . . . . . . 13 7 Ram . | . . . . . . . . Kick . | . . . . . . . . Crush . | . . . . . . . . Escape Stasis . | . . . . . . . . Rewire . | . . . . . . . . Trap 5 | . . . . 5 . . . Miscellaneous . | . . . . . . . . Route ------- -11/Scrapyard -10/Materials -10/Mines -10/Exiles (discovered 2 exits: *Min x2) -9/Mines -8/Materials -7/Factory -6/Factory History --------- Turn | Location | Event 6 | -11/Scrapyard | Discovered new exit (range 15) 16 | -11/Scrapyard | Entered Materials 83 | -10/Materials | Discovered new exit (range 7) 97 | -10/Materials | Entered Mines 169 | -10/Mines | Received a Mining Laser from a helpful Derelict 176 | -10/Mines | Deemed a non-threat by the Exiles lab entrance 177 | -10/Mines | Discovered new exit (range 5) 178 | -10/Mines | Entered Exiles 188 | -10/Exiles | Met 8R-AWN 191 | -10/Exiles | Discovered new exit (range 14) 205 | -10/Exiles | Met EX-HEX 218 | -10/Exiles | Met EX-BIN 223 | -10/Exiles | Aligned with FarCom system 223 | -10/Exiles | Given EX-Vault access code 239 | -10/Exiles | Opened EX-Vault 242 | -10/Exiles | Found Supersonic Drone Bay 253 | -10/Exiles | Found AWS/Thermal 265 | -10/Exiles | Exiles lab attacked by MAIN.C 266 | -10/Exiles | Found Modified TNC 306 | -10/Exiles | Build established: Mutant 327 | -10/Exiles | Discovered new exit (range 14) 332 | -10/Exiles | Left Exiles lab with Modified TNC 332 | -10/Exiles | Entered Mines 334 | -9/Mines | Met a Derelict bent on vengeance 878 | -9/Mines | Learned location of Storage (-9) 882 | -9/Mines | Met a Derelict who couldn't figure out how to use a Trap Extractor 983 | -9/Mines | Found a hidden stash of uninstalled traps 995 | -9/Mines | Discovered new exit (range 5) 1025 | -9/Mines | Entered Materials 1025 | -8/Materials | Evolved 4 slots: Power x1, Propulsion x2, Utility x1 1078 | -8/Materials | Repaired Xenon Bombardment Thruster 1129 | -8/Materials | Discovered new exit (range 16) 1143 | -8/Materials | Entered Factory 1143 | -7/Factory | Evolved 2 slots: Propulsion x1, Utility x1 1295 | -7/Factory | Repaired Flight Unit+ 1427 | -7/Factory | Found Prototype Launcher 1427 | -7/Factory | Identified Rocket Array 1431 | -7/Factory | Found Rocket Array 1433 | -7/Factory | Found Rocket Array 1471 | -7/Factory | Discovered new exit (range 16) 1484 | -7/Factory | Entered another Factory area 1484 | -6/Factory | Evolved 2 slots: Propulsion x1, Weapon x1 1491 | -6/Factory | Build established: Hacker-Sprinter 1627 | -6/Factory | Crushed by falling debris 1627 | -6/Factory | System corruption reached 10% 1628 | -6/Factory | Self-destructed Last Messages --------------- 01616_ Faulty integration triggers system corruption (+5). 01618_ Dropped Faulty Cld. VTOL Module. 01620_ ALERT: Potential suspicious activity detected, Programmers report to Factory Zone 3V. 01621_ System corrupted: Component data lost. 01626_ Fusion Modulator explodes. 01626_ Cld. Ion Engine destroyed. 01626_ Destroyed Cld. Ion Engine. 01626_ Fusion Modulator explodes. 01626_ Flight Unit+ destroyed. 01626_ Destroyed Flight Unit+. 01626_ Fusion Modulator explodes. 01627_ The unstable cave ceiling collapses. 01627_ Crushed by falling debris. 01627_ Flight Unit+ destroyed. 01627_ System corrupted by crushing effect (+5). 01627_ Flight Unit+ destroyed. 01627_ System corrupted by crushing effect (+3). Map ----- +----------------------------------------------------+ | ?????????# #??????????????????####+ | | ?????????# #??????????????????# | | ?????????#### #######????????????# | | ????????????# +????????????+ | | ????????????# # T####????????????# | | ????????????# ##+#######?????????????# | | ????????????# # #?????????????##### | | ????????????# # """ #?????????????# | | ????????????# # """ #?????????????# "" | | ????????????# # """ !#?????????????# "" | | ????????????# # #??????#+#????# """ | | ????????????# ################# #????# """ | | ????????????# ##?# # #????# """ | | ???????????## # ## # #???## | | ???????????#;;;;;;;;; # #####"###+ | | ???????????#; ;; # """ | | ???????????#; ;; ! = # ""F"" | | ???????????#; ] ;; + "" "" | | ??????????## #g | | ?????????##; #g | | ?????????? # | | ??????????## | # l== | | ??????????# # =! | | ???????????#" # g=! | | ???????????#"[ ############ g | | ????Y??????#" #@ #??????????# | | ???? =" #??????????# | | ????" "" # ; #??????????# | | ????????????#";;;;;;;;####???????# | | ????????????# #???????# | | ????????????# #???????# | | ????????????+ !! #???????# | | ????????????# !! #???????# | | ????????????# !! #???????? ?? | | ????????????##### #??????????????????? | | ????????????????# #??????????????????? | | ????????????????# #??????????????????? | | ????????????????# #??????????????????? | | ????????????????# #??????????????????? | | ??????###########+## #??????????????????? | | ??????# # #??????????????????? | | ??????# """" # #??????????????????? | | ??????# """" # ######### ????????? | | ??????# """" # ???????? | | ??????# """" # ???????? | | ??????# """" + ??????? | | ??????# [ """" # ??????? | | ??????# """" # ??????? | | ??????# # ##########?????????? | | ??????# # #??????????????????? | +----------------------------------------------------+ Best States ------------- Heat Dissipation 64 Energy Generation 23 Energy Capacity 340 Matter Stores 300 Matter Capacity 300 Sight Range 18 Terrain Scan Density 10 Armor Coverage 160 Propulsion Shielding 66 Evasion (%) 64 Offensive Hacking 10 Defensive Hacking 10 Item Schematics ----------------- None Robot Schematics ------------------ None Fabricated ------------ Nothing Repaired ---------- Xenon Bombardment Thruster | 20% | -8/Materials Flight Unit | 40% | -7/Factory Studied --------- Flight Unit | -7/Factory | Hacked Alien Tech Used ----------------- None Achievements -------------- None Challenges ------------ None Game ------ Seed DamperBackupMaxwheels Manual? 0 Play Time 00:25:49 Cumulative 47.5 hours Start 2026.09.02 @ 02:18:27 End 2026.09.02 @ 02:42:24 Sessions 1 Manual Loads 0 Difficulty Rogue Special Mode None Game No. 121 Rogue 121 Adventurer 0 Explorer 0 Win Type - Total 3 Types 3/0/0/0/0/0/0/0/0/0 Lore% 46 Gallery% 38 Achievement% 41 Wizard Run 0 Options --------- Layout 2 ASCII 0 Keyboard 0 Movement Arrows Keybinds 0 Fullscreen 1 Font 16/SmallcapsGlow Map View 50x49 Zoom Use 0% Tactical HUD 1 Map Filters NONE Filters NONE Steam SD RUN: c11586b7-a9b8-45db-b5ca-6b96a5134f62